fUST/lending_fUST_20250912
["ID","MTS","AMOUNT","RATE_DAILY","PERIOD"]
[385062856,1757658657932,-500.68417353,0.00014692,2]
[385062857,1757658657941,-500.0,0.00014692,2]
[385062858,1757658657951,-151.0,0.000147,2]
[385062861,1757658658028,-500.72771575,0.0001471,2]
[385062863,1757658658038,-1059.27,0.00014747,2]
[385062865,1757658658047,-1059.27,0.00014747,2]
[385062867,1757658658056,-500.82849927,0.00014774,2]
[385062869,1757658658066,-151.0,0.000148,2]
[385062871,1757658658076,-1000.0,0.000148,4]
[385062873,1757658658085,-1000.0,0.000148,5]
[385062876,1757658658095,-1000.0,0.000148,6]
[385062877,1757658658104,-480.0,0.0001481,2]
[385062879,1757658658113,-480.0,0.0001481,2]
[385062881,1757658658122,-480.0,0.0001481,2]
[385062883,1757658658131,-572.75,0.0001481,2]
[385062885,1757658658142,-480.0,0.0001481,2]
[385062887,1757658658151,-500.0,0.00014811,2]
[385062890,1757658658160,-480.0,0.00014811,2]
[385062891,1757658658171,-480.0,0.00014811,2]
[385062894,1757658658180,-919.38,0.00014811,2]
[385062896,1757658658190,-757.67,0.00014811,2]
[385062897,1757658658199,-480.0,0.00014811,2]
[385062899,1757658658208,-327.36542972,0.00014811,2]
[385062901,1757658658218,-480.0,0.00014811,2]
[385062903,1757658658227,-480.0,0.00014811,2]
[385062905,1757658658236,-480.0,0.00014811,2]
[385062907,1757658658246,-480.0,0.00014811,2]
[385062910,1757658658256,-480.0,0.00014811,2]
[385062912,1757658658266,-480.0,0.00014811,2]
[385062913,1757658658276,-480.0,0.00014811,2]
[385062915,1757658658285,-480.0,0.00014811,2]
[385062917,1757658658294,-1059.27,0.00014878,2]
[385062919,1757658658304,-1059.27,0.00014878,2]
[385062922,1757658658314,-1059.27,0.00014878,2]
[385062924,1757658658323,-1059.27,0.00014878,2]
[385062926,1757658658332,-1059.35765363,0.00014878,2]
[385062928,1757658658341,-10585.41552735,0.00014896,2]
[385062930,1757658658350,-585.07738738,0.000149,2]
[385062932,1757658658359,-2183.31810187,0.00014903,2]
[385062933,1757658658368,-817.4,0.0001491,2]
[385062935,1757658658377,-480.0,0.0001491,2]
[385062937,1757658658388,-300.0,0.0001491,2]
[385062939,1757658658398,-480.0,0.0001491,2]
[385062941,1757658658407,-480.0,0.0001491,2]
[385062943,1757658658417,-616.21,0.0001491,2]
[385062945,1757658658426,-480.0,0.0001491,2]
[385062947,1757658658435,-486.03116278,0.00014911,2]
[385062949,1757658658444,-480.0,0.00014911,2]
[385062951,1757658658457,-480.0,0.00014911,2]
[385062953,1757658658466,-480.0,0.00014911,2]
[385062955,1757658658475,-480.0,0.00014911,2]
[385062957,1757658658484,-480.0,0.00014911,2]
[385062959,1757658658495,-480.0,0.00014911,2]
[385062961,1757658658504,-480.0,0.00014911,2]
[385062963,1757658658513,-500.44826199,0.00014911,2]
[385062965,1757658658523,-480.0,0.00014911,2]
[385062967,1757658658532,-480.0,0.00014911,2]
[385062969,1757658658541,-480.0,0.00014911,2]
[385062971,1757658658551,-480.0,0.00014911,2]
[385062973,1757658658560,-480.0,0.00014911,2]
[385062975,1757658658569,-480.0,0.00014911,2]
[385062977,1757658658578,-2541.09,0.00014911,2]
[385062979,1757658658588,-480.0,0.00014911,2]
[385062981,1757658658597,-612.02,0.00014911,2]
[385062983,1757658658606,-480.0,0.00014911,2]
[385062985,1757658658616,-493.26544173,0.00014911,2]
[385062987,1757658658626,-480.0,0.00014911,2]
[385062989,1757658658635,-480.0,0.00014911,2]
[385062991,1757658658645,-554.62,0.00014911,2]
[385062993,1757658658654,-480.0,0.00014911,2]
[385062995,1757658658663,-480.0,0.00014911,2]
[385062997,1757658658673,-480.0,0.00014911,2]
[385062999,1757658658682,-588.26415346,0.00014911,2]
[385063001,1757658658692,-321.49608643,0.00014911,2]
[385063003,1757658658702,-480.0,0.00014911,2]
[385063005,1757658658711,-480.0,0.00014911,2]
[385063007,1757658658720,-427.68434068,0.00014911,2]
[385063009,1757658658729,-480.0,0.00014911,2]
[385063011,1757658658738,-480.0,0.00014911,2]
[385063013,1757658658747,-480.0,0.00014911,2]
[385063015,1757658658756,-480.0,0.00014911,2]
[385063017,1757658658765,-486.73737436,0.00014911,2]
[385063019,1757658658774,-480.0,0.00014911,2]
[385063021,1757658658783,-3463.53,0.00014911,2]
[385063023,1757658658792,-483.61320767,0.00014911,2]
[385063025,1757658658801,-489.87360635,0.00014911,2]
[385063027,1757658658811,-483.9184158,0.00014911,2]
[385063029,1757658658820,-480.0,0.00014911,2]
[385063031,1757658658829,-480.0,0.00014911,2]
[385063033,1757658658839,-519.2652221,0.00014911,2]
[385063035,1757658658847,-598.31411112,0.00014911,2]
[385063037,1757658658856,-480.0,0.00014911,2]
[385063039,1757658658866,-890.69,0.00014911,2]
[385063041,1757658658875,-490.46318283,0.00014911,2]
[385063043,1757658658885,-480.0,0.00014911,2]
[385063045,1757658658895,-480.0,0.00014911,2]
[385063047,1757658658904,-480.0,0.00014911,2]
[385063049,1757658658913,-480.0,0.00014911,2]
[385063051,1757658658923,-480.0,0.00014911,2]
[385063053,1757658658932,-480.0,0.00014911,2]
[385063055,1757658658941,-480.0,0.00014911,2]
[385063057,1757658658950,-487.60544143,0.00014911,2]
[385063059,1757658658959,-480.0,0.00014911,2]
[385063061,1757658658968,-489.78955133,0.00014911,2]
[385063063,1757658658978,-480.0,0.00014911,2]
[385063065,1757658658987,-480.0,0.00014911,2]
[385063067,1757658658996,-480.0,0.00014911,2]
[385063069,1757658659006,-480.0,0.00014911,2]
[385063071,1757658659015,-480.0,0.00014911,2]
[385063073,1757658659024,-480.0,0.00014911,2]
[385063075,1757658659033,-480.0,0.00014911,2]
[385063077,1757658659042,-480.0,0.00014911,2]
[385063079,1757658659051,-480.0,0.00014911,2]
[385063081,1757658659061,-480.0,0.00014911,2]
[385063083,1757658659070,-480.0,0.00014911,2]
[385063085,1757658659079,-1097.9,0.00014911,2]
[385063087,1757658659088,-480.0,0.00014911,2]
[385063089,1757658659097,-480.0,0.00014911,2]
[385063091,1757658659107,-492.74888568,0.00014911,2]
[385063093,1757658659115,-480.0,0.00014911,2]
[385063095,1757658659124,-480.0,0.00014911,2]
[385063097,1757658659134,-480.0,0.00014911,2]
[385063099,1757658659143,-480.0,0.00014911,2]
[385063101,1757658659152,-480.0,0.00014911,2]
[385063103,1757658659161,-480.0,0.00014911,2]
[385063105,1757658659170,-480.0,0.00014911,2]
[385063107,1757658659179,-480.0,0.00014911,2]
[385063108,1757658659188,-729.0,0.00014911,2]
[385063110,1757658659198,-480.0,0.00014911,2]
[385063112,1757658659207,-480.0,0.00014911,2]
[385063114,1757658659216,-480.0,0.00014911,2]
[385063116,1757658659225,-480.0,0.00014911,2]
[385063126,1757658659302,-480.0,0.00014911,2]
[385063128,1757658659312,-480.0,0.00014911,2]
[385063130,1757658659321,-480.0,0.00014911,2]
[385063132,1757658659330,-480.0,0.00014911,2]
[385063134,1757658659340,-9702.3,0.00014911,2]
[385063136,1757658659349,-480.0,0.00014911,2]
[385063138,1757658659359,-480.0,0.00014911,2]
[385063140,1757658659368,-480.0,0.00014911,2]
[385063142,1757658659377,-358.09674027,0.00014911,2]
[385063144,1757658659387,-480.0,0.00014911,2]
[385063146,1757658659397,-485.85955837,0.00014911,2]
[385063148,1757658659406,-533.07,0.00014911,2]
[385063150,1757658659415,-560.0,0.00014911,2]
[385063152,1757658659424,-480.0,0.00014911,2]
[385063154,1757658659434,-541.97,0.00014911,2]
[385063156,1757658659443,-488.14226077,0.00014911,2]
[385063158,1757658659454,-480.0,0.00014911,2]
[385063160,1757658659463,-490.78893289,0.00014911,2]
[385063162,1757658659472,-480.0,0.00014911,2]
[385063164,1757658659481,-480.0,0.00014911,2]
[385063166,1757658659491,-480.0,0.00014911,2]
[385063168,1757658659501,-480.0,0.00014912,2]
[385063170,1757658659511,-480.0,0.00014912,2]
[385063172,1757658659520,-480.0,0.00014912,2]
[385063174,1757658659530,-480.0,0.00014912,2]
[385063175,1757658659539,-480.0,0.00014912,2]
[385063178,1757658659549,-480.0,0.00014912,2]
[385063179,1757658659558,-480.0,0.00014912,2]
[385063181,1757658659567,-480.0,0.00014912,2]
[385063184,1757658659577,-480.0,0.00014912,2]
[385063186,1757658659586,-480.0,0.00014912,2]
[385063187,1757658659595,-480.0,0.00014912,2]
[385063190,1757658659605,-480.0,0.00014912,2]
[385063192,1757658659614,-480.0,0.00014912,2]
[385063194,1757658659624,-480.0,0.00014912,2]
[385063195,1757658659633,-480.0,0.00014912,2]
[385063197,1757658659643,-480.0,0.00014912,2]
[385063199,1757658659652,-480.0,0.00014912,2]
[385063201,1757658659663,-480.0,0.00014912,2]
[385063203,1757658659673,-480.0,0.00014912,2]
[385063205,1757658659683,-480.0,0.00014912,2]
[385063208,1757658659692,-502.69,0.00014912,2]
[385063210,1757658659702,-480.0,0.00014912,2]
[385063211,1757658659711,-480.0,0.00014912,2]
[385063213,1757658659721,-509.31083558,0.00014912,2]
[385063215,1757658659730,-646.97,0.00014912,2]
[385063217,1757658659740,-480.0,0.00014912,2]
[385063219,1757658659750,-480.0,0.00014912,2]
[385063221,1757658659759,-480.0,0.00014912,2]
[385063223,1757658659769,-500.0,0.00014915,2]
[385063226,1757658659778,-284.33140433,0.00014915,2]
[385063228,1757658659788,-300.0,0.00014937,2]
[385063230,1757658659800,-300.0,0.00014937,2]
[385063232,1757658659809,-300.0,0.00014937,2]
[385063234,1757658659818,-300.0,0.00014937,2]
[385063236,1757658659827,-300.0,0.00014937,2]
[385063238,1757658659836,-300.0,0.00014937,2]
[385063240,1757658659845,-300.0,0.00014937,2]
[385063242,1757658659854,-300.0,0.00014937,2]
[385063244,1757658659864,-300.0,0.00014937,2]
[385063246,1757658659874,-300.0,0.00014937,2]
[385063248,1757658659883,-300.0,0.00014937,2]
[385063250,1757658659893,-300.0,0.00014937,2]
[385063252,1757658659902,-300.0,0.00014937,2]
[385063254,1757658659911,-300.0,0.00014937,2]
[385063256,1757658659920,-300.0,0.00014937,2]
[385063258,1757658659929,-247.99452224,0.00014968,2]
[385063260,1757658659938,-444.44085401,0.00014968,2]
[385063262,1757658659947,-1500.0,0.00014968,2]
[385063264,1757658659956,-1500.0,0.00014968,2]
[385063266,1757658659965,-1500.0,0.00014968,2]
[385063268,1757658659975,-1500.0,0.00014968,2]
[385063270,1757658659984,-1500.0,0.00014968,2]
[385063272,1757658659993,-1000.0,0.00014977,2]
[385063274,1757658660003,-500.57534738,0.00014977,2]
[385063276,1757658660013,-500.2014928,0.00014977,2]
[385063278,1757658660023,-501.45647709,0.00014984,2]
[385063280,1757658660032,-1000.0,0.00014984,2]
[385063282,1757658660042,-1000.0,0.00014984,2]
[385063284,1757658660051,-1000.0,0.00014984,2]
[385063286,1757658660061,-1002.8461323,0.00014984,2]
[385063288,1757658660071,-1096.8589859,0.00014997,2]
[385063290,1757658660080,-1000.0,0.00014997,2]
[385063292,1757658660090,-160.0,0.00015,2]
[385063293,1757658660099,-1002.05637824,0.00015,2]
[385063295,1757658660108,-259.53362747,0.00015,2]
[385063297,1757658660118,-420.0,0.00015028,2]
[385063300,1757658660127,-768.0,0.00015029,2]
[385063301,1757658660137,-252.271721,0.00015068,2]
[385063303,1757658660146,-505.11654427,0.00015068,2]
[385063305,1757658660155,-480.0,0.00015084,2]
[385063307,1757658660164,-480.0,0.00015084,2]
[385063309,1757658660173,-480.0,0.00015084,2]
[385063311,1757658660182,-572.75,0.00015084,2]
[385063313,1757658660192,-1680.0,0.00015084,2]
[385063315,1757658660201,-480.0,0.00015084,2]
[385063317,1757658660210,-500.0,0.00015085,2]
[385063319,1757658660220,-480.0,0.00015085,2]
[385063321,1757658660229,-480.0,0.00015085,2]
[385063323,1757658660239,-919.38,0.00015085,2]
[385063325,1757658660249,-757.67,0.00015085,2]
[385063327,1757658660259,-480.0,0.00015085,2]
[385063328,1757658660268,-480.0,0.00015085,2]
[385063329,1757658660278,-480.0,0.00015085,2]
[385063330,1757658660288,-480.0,0.00015085,2]
[385063331,1757658660298,-480.0,0.00015085,2]
[385063332,1757658660308,-480.0,0.00015085,2]
[385063333,1757658660317,-480.0,0.00015085,2]
[385063334,1757658660327,-480.0,0.00015085,2]
[385063335,1757658660337,-480.0,0.00015085,2]
[385063336,1757658660346,-504.80064043,0.00015168,2]
[385063337,1757658660355,-502.6960184,0.00015168,2]
[385063339,1757658660365,-1500.0,0.00015168,2]
[385063341,1757658660374,-1519.24311429,0.00015168,2]
[385063343,1757658660384,-217.38167397,0.00015176,2]
[385063345,1757658660394,-817.4,0.00015184,2]
[385063347,1757658660404,-480.0,0.00015184,2]
[385063349,1757658660413,-480.0,0.00015184,2]
[385063351,1757658660422,-480.0,0.00015184,2]
[385063360,1757658660489,-616.21,0.00015184,2]
[385063362,1757658660504,-480.0,0.00015184,2]
[385063364,1757658660514,-480.0,0.00015185,2]
[385063366,1757658660524,-480.0,0.00015185,2]
[385063368,1757658660534,-480.0,0.00015185,2]
[385063370,1757658660545,-480.0,0.00015185,2]
[385063373,1757658660555,-480.0,0.00015185,2]
[385063375,1757658660564,-480.0,0.00015185,2]
[385063377,1757658660574,-480.0,0.00015185,2]
[385063379,1757658660584,-480.0,0.00015185,2]
[385063381,1757658660593,-484.98848676,0.00015185,2]
[385063383,1757658660602,-480.0,0.00015185,2]
[385063385,1757658660611,-480.0,0.00015185,2]
[385063387,1757658660621,-2541.09,0.00015185,2]
[385063389,1757658660631,-480.0,0.00015185,2]
[385063391,1757658660641,-612.02,0.00015185,2]
[385063393,1757658660651,-480.0,0.00015185,2]
[385063395,1757658660660,-493.30063981,0.00015185,2]
[385063397,1757658660669,-480.0,0.00015185,2]
[385063399,1757658660679,-554.62,0.00015185,2]
[385063401,1757658660689,-480.0,0.00015185,2]
[385063403,1757658660698,-480.0,0.00015185,2]
[385063405,1757658660707,-480.0,0.00015185,2]
[385063407,1757658660717,-480.0,0.00015185,2]
[385063408,1757658660727,-480.0,0.00015185,2]
[385063411,1757658660736,-480.0,0.00015185,2]
[385063412,1757658660746,-480.0,0.00015185,2]
[385063415,1757658660756,-480.0,0.00015185,2]
[385063417,1757658660765,-480.0,0.00015185,2]
[385063419,1757658660775,-3463.53,0.00015185,2]
[385063421,1757658660784,-484.53466525,0.00015185,2]
[385063423,1757658660794,-480.0,0.00015185,2]
[385063425,1757658660805,-480.0,0.00015185,2]
[385063427,1757658660814,-890.69,0.00015185,2]
[385063429,1757658660823,-480.0,0.00015185,2]
[385063431,1757658660833,-493.81882238,0.00015185,2]
[385063433,1757658660841,-480.0,0.00015185,2]
[385063435,1757658660851,-480.0,0.00015185,2]
[385063437,1757658660860,-499.07543507,0.00015185,2]
[385063439,1757658660869,-480.0,0.00015185,2]
[385063441,1757658660878,-480.0,0.00015185,2]
[385063443,1757658660887,-480.0,0.00015185,2]
[385063445,1757658660897,-480.0,0.00015185,2]
[385063447,1757658660906,-484.71778429,0.00015185,2]
[385063449,1757658660915,-480.0,0.00015185,2]
[385063451,1757658660924,-391.94558077,0.00015185,2]
[385063453,1757658660933,-480.0,0.00015185,2]
[385063455,1757658660942,-480.0,0.00015185,2]
[385063457,1757658660951,-480.0,0.00015185,2]
[385063459,1757658660960,-480.0,0.00015185,2]
[385063461,1757658660969,-480.0,0.00015185,2]
[385063463,1757658660979,-480.0,0.00015185,2]
[385063465,1757658660988,-480.0,0.00015185,2]
[385063467,1757658660998,-1097.9,0.00015185,2]
[385063469,1757658661007,-480.0,0.00015185,2]
[385063471,1757658661016,-218.72718971,0.00015185,2]
[385063473,1757658661025,-480.0,0.00015185,2]
[385063475,1757658661034,-480.0,0.00015185,2]
[385063477,1757658661043,-480.0,0.00015185,2]
[385063479,1757658661052,-480.0,0.00015185,2]
[385063481,1757658661061,-480.0,0.00015185,2]
[385063483,1757658661070,-480.0,0.00015185,2]
[385063485,1757658661080,-480.0,0.00015185,2]
[385063487,1757658661089,-480.0,0.00015185,2]
[385063489,1757658661099,-729.0,0.00015185,2]
[385063491,1757658661108,-480.0,0.00015185,2]
[385063493,1757658661118,-480.0,0.00015185,2]
[385063495,1757658661128,-480.0,0.00015185,2]
[385063497,1757658661137,-480.0,0.00015185,2]
[385063499,1757658661147,-480.0,0.00015185,2]
[385063501,1757658661156,-480.0,0.00015185,2]
[385063503,1757658661165,-480.0,0.00015185,2]
[385063505,1757658661175,-480.0,0.00015185,2]
[385063507,1757658661184,-9702.3,0.00015185,2]
[385063509,1757658661193,-480.0,0.00015185,2]
[385063511,1757658661202,-480.0,0.00015185,2]
[385063513,1757658661211,-480.0,0.00015185,2]
[385063515,1757658661220,-480.0,0.00015185,2]
[385063517,1757658661230,-533.07,0.00015185,2]
[385063519,1757658661239,-560.0,0.00015185,2]
[385063521,1757658661248,-480.0,0.00015185,2]
[385063523,1757658661257,-541.97,0.00015185,2]
[385063525,1757658661266,-575.48886381,0.00015185,2]
[385063527,1757658661275,-480.0,0.00015185,2]
[385063529,1757658661285,-480.0,0.00015185,2]
[385063531,1757658661294,-480.0,0.00015185,2]
[385063533,1757658661303,-480.0,0.00015186,2]
[385063535,1757658661313,-480.0,0.00015186,2]
[385063537,1757658661322,-480.01114593,0.00015186,2]
[385063539,1757658661331,-248.10774809,0.00015186,2]
[385063541,1757658661340,-480.0,0.00015186,2]
[385063543,1757658661351,-480.0,0.00015186,2]
[385063545,1757658661361,-486.95323596,0.00015186,2]
[385063547,1757658661370,-480.0,0.00015186,2]
[385063549,1757658661386,-510.44744621,0.00015186,2]
[385063551,1757658661395,-480.0,0.00015186,2]
[385063553,1757658661404,-203.78295343,0.00015186,2]
[385063555,1757658661413,-480.0,0.00015186,2]
[385063557,1757658661422,-461.02074401,0.00015186,2]
[385063559,1757658661432,-480.0,0.00015186,2]
[385063561,1757658661441,-480.0,0.00015186,2]
[385063563,1757658661450,-480.0,0.00015186,2]
[385063565,1757658661462,-480.0,0.00015186,2]
[385063567,1757658661472,-480.0,0.00015186,2]
[385063569,1757658661481,-502.69,0.00015186,2]
[385063571,1757658661491,-480.0,0.00015186,2]
[385063573,1757658661501,-480.0,0.00015186,2]
[385063575,1757658661510,-646.97,0.00015186,2]
[385063577,1757658661519,-480.0,0.00015186,2]
[385063579,1757658661530,-480.0,0.00015186,2]
[385063588,1757658661602,-480.0,0.00015186,2]
[385063590,1757658661612,-500.0,0.00015189,2]
[385063592,1757658661622,-160.0,0.00015191,2]
[385063594,1757658661633,-155.0,0.000152,2]
[385063596,1757658661642,-501.1531997,0.00015209,2]
[385063598,1757658661652,-500.54989184,0.00015209,2]
[385063600,1757658661661,-501.07470523,0.00015209,2]
[385063602,1757658661671,-500.56764468,0.00015209,2]
[385063604,1757658661682,-1000.0,0.00015209,2]
[385063606,1757658661692,-1000.0,0.00015209,2]
[385063608,1757658661703,-600.0,0.00015235,2]
[385063610,1757658661713,-501.79971727,0.0001524,2]
[385063612,1757658661724,-160.0,0.00015276,2]
[385063614,1757658661734,-160.0,0.00015276,2]
[385063616,1757658661744,-160.0,0.00015276,2]
[385063618,1757658661755,-160.0,0.00015276,2]
[385063620,1757658661766,-417.15472785,0.00015276,2]
[385063622,1757658661776,-160.0,0.00015295,2]
[385063624,1757658661786,-670.75889331,0.00015345,2]
[385063627,1757658661797,-581.4395941,0.00015345,2]
[385063629,1757658661806,-480.0,0.00015358,2]
[385063631,1757658661816,-480.0,0.00015358,2]
[385063632,1757658661825,-480.0,0.00015358,2]
[385063634,1757658661835,-572.75,0.00015358,2]
[385063637,1757658661845,-480.0,0.00015358,2]
[385063639,1757658661853,-500.0,0.00015359,2]
[385063641,1757658661863,-480.0,0.00015359,2]
[385063643,1757658661872,-480.0,0.00015359,2]
[385063645,1757658661881,-919.38,0.00015359,2]
[385063647,1757658661890,-757.67,0.00015359,2]
[385063649,1757658661901,-480.0,0.00015359,2]
[385063651,1757658661910,-480.0,0.00015359,2]
[385063652,1757658661920,-480.0,0.00015359,2]
[385063655,1757658661930,-480.0,0.00015359,2]
[385063657,1757658661939,-480.0,0.00015359,2]
[385063659,1757658661949,-480.0,0.00015359,2]
[385063661,1757658661959,-480.0,0.00015359,2]
[385063663,1757658661968,-325.5618107,0.00015359,2]
[385063665,1757658661978,-480.0,0.00015359,2]
[385063667,1757658661988,-233.13074058,0.00015393,2]
[385063669,1757658661998,-847.0429734,0.00015393,2]
[385063671,1757658662008,-217.7145751,0.00015393,2]
[385063673,1757658662018,-160.0,0.00015393,2]
[385063675,1757658662027,-531.04384426,0.00015393,2]
[385063677,1757658662037,-160.0,0.00015393,2]
[385063679,1757658662046,-160.0,0.00015393,2]
[385063681,1757658662056,-160.0,0.00015393,2]
[385063683,1757658662065,-160.0,0.00015393,2]
[385063685,1757658662074,-336.7310242,0.00015402,2]
[385063687,1757658662083,-26035.5064577,0.0001544,2]
[385063689,1757658662092,-2683.03557325,0.00015446,2]
[385063692,1757658662113,-2264.10087164,0.00015451,2]
[385063694,1757658662128,-2325.75837641,0.00015453,2]
[385063697,1757658662145,-817.4,0.00015458,2]
[385063700,1757658662165,-480.0,0.00015458,2]
[385063703,1757658662184,-480.0,0.00015458,2]
[385063706,1757658662199,-480.0,0.00015458,2]
[385063709,1757658662217,-616.21,0.00015458,2]
[385063712,1757658662231,-480.0,0.00015458,2]
[385063714,1757658662247,-480.0,0.00015459,2]
[385063717,1757658662264,-480.0,0.00015459,2]
[385063720,1757658662283,-480.0,0.00015459,2]
[385063723,1757658662297,-480.0,0.00015459,2]
[385063725,1757658662312,-480.0,0.00015459,2]
[385063728,1757658662329,-480.0,0.00015459,2]
[385063731,1757658662344,-480.0,0.00015459,2]
[385063733,1757658662357,-480.0,0.00015459,2]
[385063735,1757658662372,-480.0,0.00015459,2]
[385063738,1757658662387,-480.0,0.00015459,2]
[385063740,1757658662402,-2541.09,0.00015459,2]
[385063743,1757658662416,-480.0,0.00015459,2]
[385063745,1757658662430,-612.02,0.00015459,2]
[385063748,1757658662444,-480.0,0.00015459,2]
[385063750,1757658662462,-480.0,0.00015459,2]
[385063753,1757658662476,-554.62,0.00015459,2]
[385063755,1757658662490,-480.0,0.00015459,2]
[385063758,1757658662504,-480.0,0.00015459,2]
[385063760,1757658662518,-480.0,0.00015459,2]
[385063763,1757658662532,-480.0,0.00015459,2]
[385063765,1757658662547,-480.0,0.00015459,2]
[385063768,1757658662560,-480.0,0.00015459,2]
[385063770,1757658662574,-616.41677107,0.00015459,2]
[385063773,1757658662588,-480.0,0.00015459,2]
[385063775,1757658662601,-480.0,0.00015459,2]
[385063778,1757658662615,-3463.53,0.00015459,2]
[385063780,1757658662628,-480.0,0.00015459,2]
[385063783,1757658662643,-480.0,0.00015459,2]
[385063785,1757658662657,-890.69,0.00015459,2]
[385063788,1757658662671,-480.0,0.00015459,2]
[385063790,1757658662685,-480.0,0.00015459,2]
[385063793,1757658662700,-493.25311205,0.00015459,2]
[385063795,1757658662713,-480.0,0.00015459,2]
[385063797,1757658662728,-480.0,0.00015459,2]
[385063800,1757658662741,-480.0,0.00015459,2]
[385063802,1757658662756,-480.0,0.00015459,2]
[385063805,1757658662769,-480.0,0.00015459,2]
[385063807,1757658662783,-480.0,0.00015459,2]
[385063810,1757658662797,-480.0,0.00015459,2]
[385063812,1757658662811,-480.0,0.00015459,2]
[385063814,1757658662826,-480.0,0.00015459,2]
[385063817,1757658662841,-480.0,0.00015459,2]
[385063828,1757658662938,-480.0,0.00015459,2]
[385063830,1757658662952,-480.0,0.00015459,2]
[385063833,1757658662962,-1097.9,0.00015459,2]
[385063835,1757658662972,-480.0,0.00015459,2]
[385063837,1757658662981,-480.0,0.00015459,2]
[385063838,1757658662991,-480.0,0.00015459,2]
[385063840,1757658663000,-480.0,0.00015459,2]
[385063842,1757658663009,-480.0,0.00015459,2]
[385063844,1757658663019,-480.0,0.00015459,2]
[385063846,1757658663028,-480.0,0.00015459,2]
[385063848,1757658663038,-480.0,0.00015459,2]
[385063850,1757658663047,-480.0,0.00015459,2]
[385063852,1757658663057,-729.0,0.00015459,2]
[385063854,1757658663066,-480.0,0.00015459,2]
[385063856,1757658663075,-480.0,0.00015459,2]
[385063858,1757658663084,-480.0,0.00015459,2]
[385063860,1757658663094,-480.0,0.00015459,2]
[385063862,1757658663103,-480.0,0.00015459,2]
[385063864,1757658663113,-480.0,0.00015459,2]
[385063866,1757658663124,-480.0,0.00015459,2]
[385063868,1757658663133,-480.0,0.00015459,2]
[385063870,1757658663143,-9702.3,0.00015459,2]
[385063872,1757658663153,-480.0,0.00015459,2]
[385063874,1757658663163,-480.0,0.00015459,2]
[385063876,1757658663172,-480.0,0.00015459,2]
[385063878,1757658663182,-480.0,0.00015459,2]
[385063880,1757658663192,-533.07,0.00015459,2]
[385063882,1757658663202,-560.0,0.00015459,2]
[385063884,1757658663212,-395.16203851,0.00015459,2]
[385063886,1757658663222,-541.97,0.00015459,2]
[385063888,1757658663232,-480.0,0.00015459,2]
[385063890,1757658663242,-428.30300762,0.00015459,2]
[385063892,1757658663252,-480.0,0.00015459,2]
[385063894,1757658663261,-480.0,0.0001546,2]
[385063896,1757658663271,-480.0,0.0001546,2]
[385063898,1757658663281,-480.0,0.0001546,2]
[385063900,1757658663290,-480.0,0.0001546,2]
[385063902,1757658663301,-480.0,0.0001546,2]